fUST/lending_fUST_20240714
["ID","MTS","AMOUNT","RATE_DAILY","PERIOD"]
[331960875,1720900248455,-500.0,0.00025753,2]
[331960876,1720900248465,-151.0,0.00025753,7]
[331960877,1720900248474,-151.0,0.00025753,7]
[331960878,1720900248483,-500.0,0.00025753,2]
[331960879,1720900248494,-500.0,0.00025753,2]
[331960880,1720900248503,-173.86,0.00025753,2]
[331960881,1720900248513,-500.0,0.00025753,2]
[331960882,1720900248522,-500.0,0.00025753,2]
[331960883,1720900248531,-500.0,0.00025753,2]
[331960884,1720900248541,-1021.18,0.00025753,2]
[331960885,1720900248550,-165.66977464,0.00025753,2]
[331960886,1720900248559,-500.0,0.00025753,2]
[331960887,1720900248569,-208.44,0.00025753,2]
[331960888,1720900248578,-518.08487076,0.00025753,2]
[331960889,1720900248588,-1948.32,0.00025753,2]
[331960890,1720900248597,-500.0,0.00025753,2]
[331960891,1720900248607,-599.0,0.00025753,2]
[331960892,1720900248616,-500.0,0.00025753,2]
[331960893,1720900248626,-501.07,0.00025753,2]
[331960894,1720900248635,-500.0,0.00025753,2]
[331960895,1720900248645,-500.0,0.00025753,2]
[331960896,1720900248654,-500.0,0.00025753,2]
[331960897,1720900248663,-500.0,0.00025753,2]
[331960898,1720900248673,-11293.65,0.00025753,2]
[331960899,1720900248682,-500.0,0.00025753,2]
[331960900,1720900248691,-1893.12,0.00025753,2]
[331960901,1720900248700,-481.53405331,0.00025753,2]
[331960902,1720900248710,-500.0,0.00025753,2]
[331960903,1720900248720,-500.0,0.00025753,2]
[331960904,1720900248730,-856.41,0.00025753,2]
[331960905,1720900248740,-500.0,0.00025753,2]
[331960906,1720900248749,-616.37,0.00025753,2]
[331960907,1720900248759,-500.0,0.00025753,2]
[331960908,1720900248772,-150.60173835,0.00025813,2]
[331960909,1720900248781,-260.5671497,0.00025869,2]
[331960910,1720900248790,-156.07121012,0.00025869,2]
[331960911,1720900248799,-276.84511174,0.00025869,2]
[331960912,1720900248810,-156.30692249,0.00025869,2]
[331960913,1720900248819,-156.30692249,0.00025902,2]
[331960914,1720900248828,-154.55950541,0.00025902,2]
[331960915,1720900248838,-357.01441578,0.00025968,2]
[331960916,1720900248848,-5181.91568065,0.00025973,2]
[331960917,1720900248857,-153.84315082,0.00025997,2]
[331960918,1720900248866,-151.0,0.00026025,7]
[331960919,1720900248875,-151.0,0.00026025,7]
[331960920,1720900248884,-151.0,0.00026025,4]
[331960921,1720900248893,-320.89,0.00026027,2]
[331960922,1720900248901,-500.0,0.00026027,2]
[331960923,1720900248912,-617.38,0.00026027,2]
[331960924,1720900248922,-500.0,0.00026027,2]
[331960925,1720900248931,-500.0,0.00026027,2]
[331960926,1720900248940,-418.64,0.00026027,2]
[331960927,1720900248949,-500.0,0.00026027,2]
[331960928,1720900248960,-500.0,0.00026027,2]
[331960929,1720900248969,-1021.18,0.00026027,2]
[331960930,1720900248978,-500.0,0.00026027,2]
[331960931,1720900248987,-295.226594,0.00026027,7]
[331960932,1720900248996,-151.0,0.00026027,7]
[331960933,1720900249005,-318.15,0.00026027,7]
[331960934,1720900249015,-318.15,0.00026027,7]
[331960935,1720900249024,-1948.32,0.00026027,2]
[331960936,1720900249033,-416.18,0.00026027,2]
[331960937,1720900249041,-461.724374,0.00026027,7]
[331960938,1720900249050,-461.724374,0.00026027,7]
[331960939,1720900249059,-500.0,0.00026027,2]
[331960940,1720900249068,-151.0,0.00026027,7]
[331960941,1720900249077,-263.162773,0.00026027,7]
[331960942,1720900249086,-501.07,0.00026027,2]
[331960943,1720900249095,-500.0,0.00026027,2]
[331960944,1720900249104,-500.0,0.00026027,2]
[331960945,1720900249112,-168.08001,0.00026027,7]
[331960946,1720900249121,-151.0,0.00026027,7]
[331960947,1720900249131,-151.0,0.00026027,7]
[331960948,1720900249140,-500.0,0.00026027,2]
[331960949,1720900249149,-151.0,0.00026027,7]
[331960950,1720900249158,-11293.65,0.00026027,2]
[331960951,1720900249169,-1041.207011,0.00026027,7]
[331960952,1720900249178,-1041.207011,0.00026027,7]
[331960953,1720900249187,-1893.12,0.00026027,2]
[331960954,1720900249197,-157.41178,0.00026027,7]
[331960955,1720900249208,-500.0,0.00026027,2]
[331960956,1720900249217,-500.0,0.00026027,2]
[331960957,1720900249227,-856.41,0.00026027,2]
[331960958,1720900249237,-545.835666,0.00026027,7]
[331960959,1720900249246,-500.0,0.00026027,2]
[331960960,1720900249256,-545.835666,0.00026027,7]
[331960961,1720900249266,-696.142005,0.00026027,7]
[331960962,1720900249275,-696.142005,0.00026027,7]
[331960963,1720900249284,-616.37,0.00026027,2]
[331960964,1720900249293,-861.18964,0.00026027,7]
[331960965,1720900249302,-500.0,0.00026027,2]
[331960966,1720900249311,-861.18964,0.00026027,7]
[331960967,1720900249321,-302.926709,0.00026027,7]
[331960968,1720900249330,-302.926709,0.00026027,7]
[331960969,1720900249341,-5181.91568068,0.00026037,2]
[331960970,1720900249351,-158.35636453,0.00026101,2]
[331960971,1720900249361,-357.01441581,0.00026295,2]
[331960972,1720900249370,-500.0,0.00026301,2]
[331960973,1720900249381,-151.0,0.00026301,7]
[331960974,1720900249390,-151.0,0.00026301,7]
[331960975,1720900249400,-151.0,0.00026301,7]
[331960976,1720900249410,-617.38,0.00026301,2]
[331960977,1720900249420,-500.0,0.00026301,2]
[331960978,1720900249430,-500.0,0.00026301,2]
[331960979,1720900249439,-500.0,0.00026301,2]
[331960980,1720900249449,-176.98,0.00026301,2]
[331960981,1720900249459,-1021.18,0.00026301,2]
[331960982,1720900249469,-500.0,0.00026301,2]
[331960983,1720900249481,-1948.32,0.00026301,2]
[331960984,1720900249491,-500.0,0.00026301,2]
[331960985,1720900249501,-501.07,0.00026301,2]
[331960986,1720900249511,-500.0,0.00026301,2]
[331960987,1720900249521,-500.0,0.00026301,2]
[331960988,1720900249531,-500.0,0.00026301,2]
[331960989,1720900249541,-11293.65,0.00026301,2]
[331960990,1720900249551,-1893.12,0.00026301,2]
[331960991,1720900249560,-500.0,0.00026301,2]
[331960992,1720900249570,-500.0,0.00026301,2]
[331960993,1720900249579,-856.41,0.00026301,2]
[331960994,1720900249588,-500.0,0.00026301,2]
[331960995,1720900249597,-616.37,0.00026301,2]
[331960996,1720900249607,-500.0,0.00026301,2]
[331960997,1720900249616,-158.35636453,0.00026354,2]
[331960998,1720900249625,-420.0,0.00026362,2]
[331960999,1720900249635,-150.112233,0.000264,8]
[331961000,1720900249644,-197.7597611,0.00026462,2]
[331961001,1720900249653,-7458.94652043,0.0002649,2]
[331961002,1720900249662,-3000.0,0.000265,2]
[331961003,1720900249672,-3000.0,0.0002651,2]
[331961004,1720900249681,-3000.0,0.0002652,2]
[331961005,1720900249691,-3000.0,0.0002653,2]
[331961006,1720900249700,-151.0,0.0002653,7]
[331961007,1720900249709,-151.0,0.0002653,7]
[331961008,1720900249718,-151.0,0.0002653,7]
[331961009,1720900249728,-151.0,0.0002653,7]
[331961010,1720900249737,-3000.0,0.0002654,2]
[331961011,1720900249747,-3000.0,0.0002655,2]
[331961012,1720900249757,-3000.0,0.0002656,2]
[331961013,1720900249769,-3000.0,0.0002657,2]
[331961014,1720900249778,-151.0,0.0002657,7]
[331961015,1720900249788,-834.101087,0.0002657,7]
[331961016,1720900249797,-834.101087,0.0002657,7]
[331961017,1720900249806,-165.134278,0.0002657,7]
[331961018,1720900249817,-372.55021,0.0002657,7]
[331961019,1720900249826,-372.55021,0.0002657,7]
[331961020,1720900249837,-203.02799735,0.00026574,2]
[331961021,1720900249847,-191.27347695,0.00026574,2]
[331961022,1720900249856,-229.31956132,0.00026574,2]
[331961023,1720900249865,-500.0,0.00026575,2]
[331961024,1720900249875,-617.38,0.00026575,2]
[331961025,1720900249885,-500.0,0.00026575,2]
[331961026,1720900249894,-500.0,0.00026575,2]
[331961027,1720900249903,-151.0,0.00026575,2]
[331961028,1720900249913,-151.0,0.00026575,7]
[331961029,1720900249922,-151.0,0.00026575,7]
[331961030,1720900249932,-151.0,0.00026575,7]
[331961031,1720900249941,-151.0,0.00026575,7]
[331961032,1720900249950,-151.0,0.00026575,7]
[331961033,1720900249959,-151.0,0.00026575,7]
[331961034,1720900249969,-539.12,0.00026575,2]
[331961035,1720900249979,-151.0,0.00026575,7]
[331961036,1720900249989,-151.0,0.00026575,7]
[331961037,1720900249998,-1021.18,0.00026575,2]
[331961038,1720900250006,-500.0,0.00026575,2]
[331961039,1720900250015,-1948.32,0.00026575,2]
[331961040,1720900250024,-251.87,0.00026575,2]
[331961041,1720900250033,-501.07,0.00026575,2]
[331961042,1720900250043,-526.07,0.00026575,2]
[331961043,1720900250051,-500.0,0.00026575,2]
[331961044,1720900250060,-11293.65,0.00026575,2]
[331961045,1720900250070,-1893.12,0.00026575,2]
[331961046,1720900250079,-500.0,0.00026575,2]
[331961047,1720900250089,-500.0,0.00026575,2]
[331961048,1720900250098,-856.41,0.00026575,2]
[331961049,1720900250113,-410.01,0.00026575,2]
[331961050,1720900250205,-616.37,0.00026575,2]
[331961051,1720900250217,-151.0,0.00026575,7]
[331961052,1720900250228,-500.0,0.00026575,2]
[331961053,1720900250238,-569.452465,0.00026575,7]
[331961054,1720900250249,-151.0,0.00026575,7]
[331961055,1720900250259,-569.452465,0.00026575,7]
[331961056,1720900250268,-3000.0,0.0002658,2]
[331961057,1720900250277,-3000.0,0.0002659,2]
[331961058,1720900250287,-3000.0,0.000266,2]
[331961059,1720900250296,-3000.0,0.0002661,2]
[331961060,1720900250305,-3000.0,0.0002662,2]
[331961061,1720900250314,-150.42960253,0.00026621,2]
[331961062,1720900250323,-151.833814,0.00026626,7]
[331961063,1720900250332,-226.0,0.00026629,2]
[331961064,1720900250341,-3000.0,0.0002663,2]
[331961065,1720900250350,-3000.0,0.0002664,2]
[331961066,1720900250360,-3000.0,0.0002665,2]
[331961067,1720900250370,-3000.0,0.0002666,2]
[331961068,1720900250379,-3000.0,0.0002667,2]
[331961069,1720900250389,-3000.0,0.0002668,2]
[331961070,1720900250398,-3000.0,0.0002669,2]
[331961071,1720900250407,-3000.0,0.000267,2]
[331961072,1720900250417,-3000.0,0.0002671,2]
[331961073,1720900250425,-151.0,0.0002672,7]
[331961074,1720900250435,-151.0,0.0002672,7]
[331961075,1720900250443,-3000.0,0.0002672,2]
[331961076,1720900250453,-4302.591442,0.0002673,2]
[331961077,1720900250462,-153.32501537,0.00026794,2]
[331961078,1720900250471,-153.32501537,0.00026809,2]
[331961079,1720900250484,-154.55950541,0.00026848,2]
[331961080,1720900250494,-154.55950541,0.00026848,2]
[331961081,1720900250505,-287.0997448,0.00026848,2]
[331961082,1720900250515,-151.0,0.00026849,7]
[331961083,1720900250525,-151.0,0.00026849,7]
[331961084,1720900250536,-151.0,0.00026849,7]
[331961085,1720900250545,-459.32,0.00026849,2]
[331961086,1720900250554,-617.38,0.00026849,2]
[331961087,1720900250563,-500.0,0.00026849,2]
[331961088,1720900250573,-500.0,0.00026849,2]
[331961089,1720900250583,-1021.18,0.00026849,2]
[331961090,1720900250592,-515.81,0.00026849,2]
[331961091,1720900250601,-1948.32,0.00026849,2]
[331961092,1720900250611,-501.07,0.00026849,2]
[331961093,1720900250620,-500.0,0.00026849,2]
[331961094,1720900250629,-11293.65,0.00026849,2]
[331961095,1720900250639,-1893.12,0.00026849,2]
[331961096,1720900250648,-500.0,0.00026849,2]
[331961097,1720900250657,-379.16,0.00026849,2]
[331961098,1720900250667,-856.41,0.00026849,2]
[331961099,1720900250676,-616.37,0.00026849,2]
[331961100,1720900250686,-500.0,0.00026849,2]
[331961101,1720900250695,-151.0,0.00026849,7]
[331961102,1720900250704,-242.312112,0.00026907,2]
[331961103,1720900250714,-966.54780921,0.00027,15]
[331961104,1720900250723,-315.0,0.00027,120]
[331961105,1720900250733,-545.835666,0.00027,7]
[331961106,1720900250742,-545.835666,0.00027,7]
[331961107,1720900250752,-696.142005,0.00027,7]
[331961108,1720900250762,-696.142005,0.00027,7]
[331961109,1720900250775,-861.18964,0.00027,7]
[331961110,1720900250784,-861.18964,0.00027,7]
[331961111,1720900250793,-302.926709,0.00027,7]
[331961112,1720900250802,-302.926709,0.00027,7]
[331961113,1720900250814,-152.38406,0.00027123,7]
[331961114,1720900250823,-151.0,0.00027123,7]
[331961115,1720900250833,-617.38,0.00027123,2]
[331961116,1720900250843,-151.0,0.00027123,4]
[331961117,1720900250852,-500.0,0.00027123,2]
[331961118,1720900250862,-500.0,0.00027123,2]
[331961119,1720900250871,-1021.18,0.00027123,2]
[331961120,1720900250881,-151.0,0.00027123,7]
[331961121,1720900250890,-318.15,0.00027123,7]
[331961122,1720900250900,-318.15,0.00027123,7]
[331961123,1720900250910,-1948.32,0.00027123,2]
[331961124,1720900250919,-501.07,0.00027123,2]
[331961125,1720900250929,-500.0,0.00027123,2]
[331961126,1720900250939,-158.941587,0.00027123,7]
[331961127,1720900250949,-151.0,0.00027123,7]
[331961128,1720900250959,-151.0,0.00027123,7]
[331961129,1720900250970,-3824.77971512,0.00027123,2]
[331961130,1720900251149,-504.56889349,0.00024657,2]
[331961131,1720900251160,-505.5237899,0.00024657,2]
[331961132,1720900251169,-2553.21312275,0.00027123,2]
[331961133,1720900251664,-20.22850915,0.00024657,2]
[331961134,1720900262597,720.24973903,0.00012,2]
[331961135,1720900265607,492.00368855,0.00012,2]
[331961136,1720900288705,1065.99282123,0.0002,2]
[331961137,1720900289284,284.99984706,0.00012,2]
[331961138,1720900292499,441.04727659,0.00012,2]
[331961139,1720900294379,276.84511174,0.000165,2]
[331961140,1720900295431,764.43027422,0.0002,2]
[331961141,1720900297171,6871.28306613,0.0002,2]
[331961142,1720900298207,262.91350079,0.0002217,2]
[331961143,1720900298228,617.52118308,0.0002217,2]
[331961144,1720900298730,428.62808121,0.0002,2]
[331961145,1720900300182,980.92896757,0.0002,2]
[331961146,1720900304731,191.27347695,0.00018,2]
[331961147,1720900305643,202.78437057,0.00014545,2]
[331961148,1720900310502,428.62808121,0.0002,2]
[331961149,1720900331381,276.910965,0.000165,2]
[331961150,1720900337176,4839.28478131,0.0002,2]
[331961151,1720900345392,764.10919398,0.0002,2]
[331961152,1720900350825,191.27347695,0.0002,2]
[331961153,1720900366885,259.85239194,9.9e-05,2]
[331961154,1720900480318,287.0997448,0.00012,2]
[331961156,1720900541058,441.04727659,0.00014999,2]
[331961158,1720900558008,203.02799735,0.00014545,2]
[331961159,1720900568088,993.15706015,0.00014999,2]
[331961160,1720900608788,1286.94501432,0.00014999,2]
[331961161,1720900619294,154.82205658,0.00014999,2]
[331961164,1720900674553,1026.73530797,0.00015,2]
[331961165,1720900693024,441.04727659,0.00014999,2]
[331961167,1720900754621,156.30692249,0.00014999,2]
[331961168,1720900755571,156.07121012,0.00014999,2]
[331961169,1720900790787,209.2624115,0.00014999,2]
[331961171,1720900830210,441.04727659,0.00014999,2]
[331961172,1720900915624,280.75134919,0.00014999,2]
[331961173,1720901000040,441.04727659,0.00014999,2]
[331961174,1720901015036,441.04727659,0.00014999,2]
[331961176,1720901142155,-300.0,0.00016254,2]
[331961177,1720901142177,-51.82577047,0.00016254,2]
[331961178,1720901172034,441.04727659,0.00014999,2]
[331961179,1720901228153,-300.0,0.00016254,2]
[331961180,1720901228179,-300.0,0.00016254,2]
[331961181,1720901228201,-10764.76877703,0.00016255,2]
[331961182,1720901242087,-10498.53429773,0.00016255,2]
[331961183,1720901242108,-154.55950541,0.00016255,2]
[331961184,1720901242128,-162.157861,0.00016616,2]
[331961185,1720901242149,-162.157861,0.00016789,2]
[331961186,1720901242173,-276.84511174,0.00016824,2]
[331961187,1720901242195,-162.157861,0.00016963,2]
[331961188,1720901242214,-500.0,0.00017143,2]
[331961189,1720901242236,-32.11757534,0.00017143,2]
[331961190,1720901321070,154.54409492,0.00014999,2]
[331961191,1720901326634,-166.37366798,0.00016255,2]
[331961192,1720901326664,-608.4323747,0.00016255,2]
[331961194,1720901326701,-774.80604268,0.00016255,2]
[331961196,1720901326736,-774.80604268,0.00016255,2]
[331961198,1720901347141,154.55950541,0.00014999,2]
[331961199,1720901349175,-300.0,0.00016254,2]
[331961200,1720901349196,-300.0,0.00016254,2]
[331961201,1720901349219,-6795.71345586,0.00016255,2]
[331961202,1720901349242,-208.08631229,0.00016255,2]
[331961203,1720901349266,-2121.20832974,0.00016255,2]
[331961204,1720901349288,-162.157861,0.00017136,2]
[331961205,1720901349312,-24900.0,0.00017144,2]
[331961206,1720901349334,-524.878979,0.00017239,2]
[331961207,1720901349355,-162.157861,0.00017309,2]
[331961208,1720901349376,-162.157861,0.00017482,2]
[331961209,1720901349397,-372.66598383,0.00017531,2]
[331961210,1720901349420,-420.0,0.00017766,2]
[331961211,1720901349441,-3000.0,0.00017784,2]
[331961212,1720901349463,-420.0,0.00017879,2]
[331961213,1720901349486,-1244.05433716,0.000179,2]
[331961214,1720901349507,-205.1077818,0.00018,2]
[331961215,1720901349528,-467.88242466,0.00018179,2]
[331961216,1720901349548,-191.27347695,0.00018798,2]
[331961217,1720901349569,-154.55950541,0.00018899,2]
[331961218,1720901349590,-441.04727659,0.00018899,2]
[331961219,1720901349610,-250.0,0.00019041,2]
[331961220,1720901349630,-201.12837956,0.00019165,2]
[331961221,1720901349650,-159.62974281,0.00019165,2]
[331961222,1720901349671,-524.30218587,0.00019165,2]
[331961223,1720901349692,-162.35058,0.00019178,2]
[331961224,1720901349712,-587.0,0.00019667,2]
[331961225,1720901349732,-300.62257925,0.0002,2]
[331961226,1720901349754,-3299.23119742,0.0002,2]
[331961227,1720901349775,-428.62808121,0.0002,2]
[331961228,1720901349795,-225.81003448,0.0002,2]
[331961229,1720901349816,-154.55950541,0.0002,2]
[331961230,1720901349836,-783.6383655,0.0002,2]
[331961231,1720901349857,-1000.0,0.0002,2]
[331961232,1720901349879,-293.68788523,0.0002,2]
[331961233,1720901349898,-154.60575532,0.00020543,2]
[331961234,1720901349919,-154.54409492,0.00020779,2]
[331961235,1720901349940,-154.54409492,0.00020779,2]
[331961236,1720901349960,-154.54409492,0.00020779,2]
[331961237,1720901349981,-197.44371632,0.00021095,2]
[331961238,1720901350002,-571.595993,0.00021096,2]
[331961239,1720901350022,-621.28385,0.0002121,2]
[331961240,1720901350043,-681.0,0.00021634,2]
[331961241,1720901350063,-166.666666,0.00021918,2]
[331961242,1720901350084,-377.82698926,0.00022,2]
[331961243,1720901350104,-261.65035706,0.00022,2]
[331961244,1720901350125,-7787.36467025,0.00022022,2]
[331961247,1720901362087,-16487.11991599,0.00022022,2]
[331961248,1720901363140,-5725.51541376,0.00022022,2]
[331961249,1720901363162,-620.0641925,0.00022271,2]
[331961250,1720901363188,-1244.05433712,0.00022844,2]
[331961251,1720901363209,-203.57,0.00022932,3]
[331961252,1720901363232,-610.71,0.00022932,3]
[331961253,1720901363255,-154.55950541,0.00022941,2]
[331961254,1720901363294,8075.97412487,0.00022021,2]
[331961255,1720901372514,1329.84166878,0.00019922,2]
[331961256,1720901372536,42.45844362,0.00019922,2]
[331961257,1720901373077,293.68788523,0.0002,2]
[331961261,1720901384329,2121.20832974,0.0001818,2]
[331961262,1720901387325,191.27347695,0.0001818,2]
[331961263,1720901398497,197.44371632,0.00019,2]
[331961266,1720901403277,273.37336231,9.9e-05,2]
[331961299,1720901432167,-162.367878,0.00023261,2]
[331961300,1720901432177,-153.19833366,0.000233,14]
[331961301,1720901432187,-585.24205572,0.00023384,2]
[331961302,1720901432204,-34.7611539,0.00023384,2]
[331961303,1720901432214,-441.04727659,0.00024242,2]
[331961304,1720901432223,-203.78426724,0.00024242,2]
[331961305,1720901432234,-154.57491897,0.00024242,2]
[331961306,1720901432243,-256.0036371,0.00024242,2]
[331961307,1720901432253,-154.71370255,0.00024242,2]
[331961308,1720901432263,-293.68788523,0.00024242,2]
[331961309,1720901432275,-2121.20832974,0.00024242,2]
[331961310,1720901432286,-428.62808121,0.00024242,2]
[331961311,1720901432296,-1907.22581396,0.00024547,2]
[331961312,1720901432330,-329.16322832,0.00024547,2]
[331961389,1720901438370,-441.04727659,0.00023968,2]
[331961390,1720901438379,-191.27347695,0.00024242,2]
[331961391,1720901438388,-741.34645149,0.00024547,2]
[331961392,1720901438398,-620.00016048,0.00024553,2]
[331961393,1720901438407,-191.13729909,0.00024556,2]
[331961394,1720901438417,-2000.0,0.00024557,2]
[331961395,1720901438426,-64324.284032,0.00024647,3]
[331961396,1720901438436,-407.14,0.00024647,3]
[331961397,1720901438445,-255.50316363,0.00024656,2]
[331961398,1720901438455,-500.0,0.00024656,2]
[331961399,1720901438464,-500.0,0.00024656,2]
[331961400,1720901438473,-161.05269717,0.00024656,2]
[331961401,1720901438483,-500.0,0.00024656,2]
[331961402,1720901438492,-331.42382833,0.00024656,2]
[331961403,1720901438502,-325.32353325,0.00024656,2]
[331961404,1720901438511,-500.0,0.00024656,2]
[331961405,1720901438521,-546.38128456,0.00024656,2]
[331961406,1720901438532,-500.0,0.00024657,2]
[331961407,1720901438542,-500.0,0.00024657,2]
[331961408,1720901438551,-500.0,0.00024657,2]
[331961409,1720901438562,-500.0,0.00024657,2]
[331961410,1720901438571,-500.0,0.00024657,2]
[331961411,1720901438581,-500.0,0.00024657,2]
[331961412,1720901438591,-500.0,0.00024657,2]
[331961413,1720901438600,-500.0,0.00024657,2]
[331961414,1720901438611,-521.79621132,0.00024657,2]
[331961415,1720901438620,-500.0,0.00024657,2]
[331961416,1720901438629,-500.0,0.00024657,2]
[331961417,1720901438640,-500.0,0.00024657,2]
[331961418,1720901438649,-500.0,0.00024657,2]
[331961419,1720901438658,-500.0,0.00024657,2]
[331961420,1720901438668,-500.0,0.00024657,2]
[331961421,1720901438677,-500.0,0.00024657,2]
[331961422,1720901438686,-500.0,0.00024657,2]
[331961423,1720901438696,-500.0,0.00024657,2]
[331961424,1720901438705,-500.0,0.00024657,2]
[331961425,1720901438715,-500.0,0.00024657,2]
[331961426,1720901438725,-500.0,0.00024657,2]
[331961427,1720901438735,-500.0,0.00024657,2]
[331961428,1720901438746,-157.88088568,0.00024657,2]
[331961429,1720901438756,-500.0,0.00024657,2]
[331961430,1720901438766,-500.0,0.00024657,2]
[331961431,1720901438776,-500.0,0.00024657,2]
[331961432,1720901438786,-500.0,0.00024657,2]
[331961433,1720901438796,-552.00324419,0.00024657,2]
[331961434,1720901438807,-500.0,0.00024657,2]
[331961435,1720901438816,-500.0,0.00024657,2]
[331961436,1720901438827,-500.0,0.00024657,2]
[331961437,1720901438836,-500.0,0.00024657,2]
[331961438,1720901438847,-500.0,0.00024657,2]
[331961439,1720901438857,-500.0,0.00024657,2]
[331961440,1720901438867,-500.0,0.00024657,2]
[331961441,1720901438876,-1500.0,0.00024657,2]
[331961442,1720901438885,-500.0,0.00024657,2]
[331961443,1720901438895,-165.66977464,0.00024657,2]
[331961444,1720901438905,-595.53,0.00024657,2]
[331961445,1720901438914,-500.0,0.00024657,2]
[331961446,1720901438923,-500.0,0.00024657,2]
[331961447,1720901438932,-619.8,0.00024657,2]
[331961448,1720901438942,-500.0,0.00024657,2]
[331961449,1720901438952,-500.0,0.00024657,2]
[331961450,1720901438962,-500.0,0.00024657,2]
[331961451,1720901438972,-500.0,0.00024657,2]
[331961452,1720901438981,-409.24956619,0.00024657,2]
[331961453,1720901438991,-500.0,0.00024657,2]
[331961454,1720901439001,-500.0,0.00024657,2]
[331961455,1720901439010,-167.5788304,0.00024657,2]
[331961456,1720901439021,-500.0,0.00024657,2]
[331961457,1720901439031,-2393.03,0.00024657,2]
[331961458,1720901439042,-209.25385892,0.00024657,2]
[331961459,1720901439052,-500.0,0.00024657,2]
[331961460,1720901439062,-500.0,0.00024657,2]
[331961461,1720901439071,-500.0,0.00024657,2]
[331961462,1720901439081,-500.0,0.00024657,2]
[331961463,1720901439090,-500.0,0.00024657,2]
[331961464,1720901439099,-500.0,0.00024657,2]
[331961465,1720901439109,-500.0,0.00024657,2]
[331961466,1720901439119,-500.0,0.00024657,2]
[331961467,1720901439128,-500.0,0.00024657,2]
[331961468,1720901439138,-500.0,0.00024657,2]
[331961469,1720901439148,-500.0,0.00024657,2]
[331961470,1720901439157,-500.0,0.00024657,2]
[331961471,1720901439166,-500.0,0.00024657,2]
[331961472,1720901439176,-500.0,0.00024657,2]
[331961473,1720901439185,-500.0,0.00024657,2]
[331961474,1720901439195,-500.0,0.00024657,2]
[331961475,1720901439207,-500.0,0.00024657,2]
[331961476,1720901439216,-1000.0,0.00024657,5]
[331961477,1720901439226,-500.0,0.00024657,2]
[331961478,1720901439235,-505.45739212,0.00024657,2]
[331961479,1720901439246,-500.0,0.00024657,2]
[331961480,1720901439255,-500.0,0.00024657,2]
[331961481,1720901439265,-500.0,0.00024657,2]
[331961482,1720901439275,-500.0,0.00024657,2]
[331961483,1720901439285,-500.0,0.00024657,2]
[331961485,1720901439296,-500.0,0.00024657,2]
[331961486,1720901439308,-167.84,0.00024657,2]
[331961487,1720901439318,-518.23035711,0.00024657,2]
[331961488,1720901439330,-500.0,0.00024657,2]
[331961489,1720901439340,-500.0,0.00024657,2]
[331961490,1720901439350,-199.52435898,0.00024657,2]
[331961491,1720901439359,-500.0,0.00024657,2]
[331961492,1720901439369,-500.0,0.00024657,2]
[331961493,1720901439379,-395.53496956,0.00024657,2]
[331961494,1720901439388,-504.68680287,0.00024657,2]
[331961495,1720901439398,-632.9,0.00024657,2]
[331961496,1720901439407,-500.0,0.00024657,2]
[331961497,1720901439416,-500.0,0.00024657,2]
[331961498,1720901439425,-500.0,0.00024657,2]
[331961499,1720901439435,-500.0,0.00024657,2]
[331961500,1720901439444,-914.37,0.00024657,2]